[Event "*** Titled Tuesday Blitz"]
[Site "Chess.com"]
[Date "2020.10.27"]
[Round "7"]
[White "LogoCzar"]
[Black "poppy73"]
[Result "1-0"]
[WhiteElo "2369"]
[BlackElo "2218"]
[TimeControl "180+1"]
[EndTime "11:17:17 PDT"]
[Termination "LogoCzar won by resignation"]

1. e4 {[%clk 0:03:00.9]} 1... c5 {[%clk 0:02:59.2]} 2. Nf3 {[%clk 0:03:00.6]}
2... d6 {[%clk 0:02:59.4]} 3. d4 {[%clk 0:02:59.9]} 3... cxd4 {[%clk 0:03:00.3]}
4. Nxd4 {[%clk 0:02:59.7]} 4... Nf6 {[%clk 0:02:59.8]} 5. Nc3 {[%clk 0:02:59.5]}
5... a6 {[%clk 0:02:59.9]} 6. h3 {[%clk 0:02:59.7]} 6... e5 {[%clk 0:02:58.9]}
7. Nb3 {[%clk 0:02:59.6]} 7... h5 {[%clk 0:02:55.4]} 8. Bg5 {[%clk 0:02:58.5]}
8... Be6 {[%clk 0:02:52.2]} 9. f4 {[%clk 0:02:56.8]} 9... exf4 {[%clk 0:02:49]}
10. Qd2 {[%clk 0:02:56.9]} 10... Be7 {[%clk 0:02:48.1]} 11. O-O-O {[%clk
0:02:56.8]} 11... Nbd7 {[%clk 0:02:47.8]} 12. Bxf4 {[%clk 0:02:56.7]} 12... Ne5
{[%clk 0:02:46.4]} 13. Qe1 {[%clk 0:02:54.2]} 13... Qc7 {[%clk 0:02:45.9]} 14.
Be2 {[%clk 0:02:53.9]} 14... O-O-O {[%clk 0:02:43.5]} 15. Kb1 {[%clk 0:02:53]}
15... Kb8 {[%clk 0:02:42.8]} 16. Rf1 {[%clk 0:02:52.6]} 16... h4 {[%clk
0:02:41.4]} 17. Nd5 {[%clk 0:02:47.8]} 17... Bxd5 {[%clk 0:02:40.3]} 18. exd5
{[%clk 0:02:48]} 18... Nfd7 {[%clk 0:02:40]} 19. c4 {[%clk 0:02:42.6]} 19... g5
{[%clk 0:02:35.1]} 20. Be3 {[%clk 0:02:40.6]} 20... Nxc4 {[%clk 0:02:20.2]} 21.
Rc1 {[%clk 0:02:33.4]} 21... Nde5 {[%clk 0:02:19.4]} 22. Nd4 {[%clk 0:02:27.7]}
22... Rc8 {[%clk 0:01:20.1]} 23. Bxc4 {[%clk 0:02:22.6]} 23... Nxc4 {[%clk
0:01:19.7]} 24. b3 {[%clk 0:02:22.8]} 24... Na3+ {[%clk 0:01:17.3]} 25. Kb2
{[%clk 0:02:22.7]} 25... Qb6 {[%clk 0:00:58.9]} 26. Kxa3 {[%clk 0:02:22]} 26...
Rxc1 {[%clk 0:00:56.5]} 27. Qxc1 {[%clk 0:02:21.1]} 27... Rc8 {[%clk 0:00:56.3]}
28. Nc6+ {[%clk 0:02:17.5]} 28... Rxc6 {[%clk 0:00:53.5]} 29. dxc6 {[%clk
0:02:16.9]} 29... d5+ {[%clk 0:00:50.2]} 30. Kb2 {[%clk 0:02:12.8]} 30... d4
{[%clk 0:00:49.5]} 31. c7+ {[%clk 0:02:10.5]} 31... Kc8 {[%clk 0:00:48]} 32. Bd2
{[%clk 0:02:08.7]} 32... Bf6 {[%clk 0:00:43.3]} 33. Qc4 {[%clk 0:02:03.4]} 33...
d3+ {[%clk 0:00:41]} 34. Bc3 {[%clk 0:02:03.2]} 34... d2 {[%clk 0:00:36.8]} 35.
Bxf6 {[%clk 0:02:00.1]} 35... d1=Q {[%clk 0:00:30.6]} 36. Rxd1 {[%clk
0:01:59.7]} 36... Qxf6+ {[%clk 0:00:30.4]} 37. Qd4 {[%clk 0:02:00.1]} 37...
Qxd4+ {[%clk 0:00:24.5]} 38. Rxd4 {[%clk 0:02:00.4]} 38... Kxc7 {[%clk
0:00:25.4]} 39. Rd5 {[%clk 0:01:58.8]} 39... Kc6 {[%clk 0:00:25.1]} 40. Rxg5
{[%clk 0:01:58.5]} 1-0

[Event "*** Titled Tuesday Blitz"]
[Site "Chess.com"]
[Date "2020.10.27"]
[Round "7"]
[White "Keures"]
[Black "Training_Day"]
[Result "1-0"]
[WhiteElo "2235"]
[BlackElo "2389"]
[TimeControl "180+1"]
[EndTime "11:17:17 PDT"]
[Termination "Keures won on time"]

1. d4 {[%clk 0:03:00.9]} 1... Nf6 {[%clk 0:02:59.1]} 2. c4 {[%clk 0:03:00.5]}
2... e6 {[%clk 0:02:58.1]} 3. Nc3 {[%clk 0:02:54.6]} 3... Bb4 {[%clk 0:02:53.4]}
4. e3 {[%clk 0:02:54.7]} 4... O-O {[%clk 0:02:42.2]} 5. Bd3 {[%clk 0:02:54.3]}
5... c5 {[%clk 0:02:41.3]} 6. Nf3 {[%clk 0:02:53.3]} 6... Bxc3+ {[%clk
0:02:31.9]} 7. bxc3 {[%clk 0:02:51.3]} 7... Nc6 {[%clk 0:02:30.1]} 8. O-O {[%clk
0:02:48.2]} 8... d6 {[%clk 0:02:30]} 9. Ng5 {[%clk 0:02:44]} 9... h6 {[%clk
0:02:03.8]} 10. Ne4 {[%clk 0:02:43.6]} 10... Nxe4 {[%clk 0:01:59.4]} 11. Bxe4
{[%clk 0:02:44.5]} 11... Qc7 {[%clk 0:01:58.7]} 12. Qf3 {[%clk 0:02:43.1]} 12...
Na5 {[%clk 0:01:43.2]} 13. Bd3 {[%clk 0:02:38.9]} 13... cxd4 {[%clk 0:01:27.2]}
14. cxd4 {[%clk 0:02:34]} 14... Nxc4 {[%clk 0:01:26.5]} 15. Bxc4 {[%clk
0:02:26.1]} 15... Qxc4 {[%clk 0:01:25.6]} 16. Ba3 {[%clk 0:02:26.4]} 16... Rd8
{[%clk 0:01:18.6]} 17. Qg3 {[%clk 0:02:24.5]} 17... Qa6 {[%clk 0:01:12.8]} 18.
Bb4 {[%clk 0:02:10.5]} 18... d5 {[%clk 0:00:16.8]} 19. Be7 {[%clk 0:01:57.3]}
19... Re8 {[%clk 0:00:11]} 20. Bf6 {[%clk 0:01:57.6]} 20... g6 {[%clk
0:00:11.2]} 21. Qf4 {[%clk 0:01:58]} 21... Kh7 {[%clk 0:00:09.9]} 22. Rac1
{[%clk 0:01:49.6]} 22... Bd7 {[%clk 0:00:06.1]} 23. Rc7 {[%clk 0:01:47.7]} 23...
Qa4 {[%clk 0:00:04]} 24. Be5 {[%clk 0:01:45.3]} 24... f5 {[%clk 0:00:01.1]} 25.
Bd6 {[%clk 0:01:35]} 1-0

[Event "*** Titled Tuesday Blitz"]
[Site "Chess.com"]
[Date "2020.10.27"]
[Round "7"]
[White "kai_nov"]
[Black "teacher4chess"]
[Result "1-0"]
[WhiteElo "2292"]
[BlackElo "2071"]
[TimeControl "180+1"]
[EndTime "11:17:20 PDT"]
[Termination "kai_nov won by resignation"]

1. d4 {[%clk 0:03:00.9]} 1... d5 {[%clk 0:02:59]} 2. c4 {[%clk 0:03:00.7]} 2...
e6 {[%clk 0:02:59.3]} 3. Nc3 {[%clk 0:02:59.8]} 3... Be7 {[%clk 0:02:59.1]} 4.
Nf3 {[%clk 0:02:57.6]} 4... Nf6 {[%clk 0:02:59.2]} 5. cxd5 {[%clk 0:02:54.4]}
5... exd5 {[%clk 0:02:59]} 6. Bg5 {[%clk 0:02:53.3]} 6... O-O {[%clk 0:02:58.5]}
7. e3 {[%clk 0:02:47.8]} 7... b6 {[%clk 0:02:57.6]} 8. Bd3 {[%clk 0:02:40.2]}
8... c5 {[%clk 0:02:54.9]} 9. dxc5 {[%clk 0:02:35.5]} 9... bxc5 {[%clk
0:02:53.8]} 10. Bxf6 {[%clk 0:02:30.7]} 10... Bxf6 {[%clk 0:02:53.7]} 11. Nxd5
{[%clk 0:02:28.8]} 11... Qa5+ {[%clk 0:02:52.8]} 12. b4 {[%clk 0:02:13.3]} 12...
cxb4 {[%clk 0:02:44.5]} 13. Nxf6+ {[%clk 0:02:12.6]} 13... gxf6 {[%clk
0:02:43.9]} 14. Be4 {[%clk 0:01:32.7]} 14... Ba6 {[%clk 0:02:25.4]} 15. Bxa8
{[%clk 0:01:30.2]} 15... Rd8 {[%clk 0:02:05.1]} 16. Nd4 {[%clk 0:01:29.5]} 16...
b3+ {[%clk 0:01:29]} 17. Qd2 {[%clk 0:01:26.6]} 17... b2 {[%clk 0:01:15.9]} 18.
Rb1 {[%clk 0:01:20.9]} 18... Qxa2 {[%clk 0:01:12.6]} 19. Qxb2 {[%clk 0:01:20.6]}
19... Qa5+ {[%clk 0:01:08]} 20. Qb4 {[%clk 0:01:17.6]} 20... Qxb4+ {[%clk
0:01:04.9]} 21. Rxb4 {[%clk 0:01:16.9]} 21... Nd7 {[%clk 0:01:05]} 22. Bf3
{[%clk 0:01:11.5]} 22... Ne5 {[%clk 0:01:02.8]} 23. Be2 {[%clk 0:01:10.2]} 23...
Bxe2 {[%clk 0:00:56.5]} 24. Kxe2 {[%clk 0:01:09.8]} 24... Rc8 {[%clk 0:00:54.4]}
25. Rhb1 {[%clk 0:01:08.1]} 25... Kg7 {[%clk 0:00:49.3]} 26. Nf5+ {[%clk
0:01:07.8]} 1-0

[Event "*** Titled Tuesday Blitz"]
[Site "Chess.com"]
[Date "2020.10.27"]
[Round "7"]
[White "VitaliyBernadskiy"]
[Black "PSvidler"]
[Result "0-1"]
[WhiteElo "2752"]
[BlackElo "2918"]
[TimeControl "180+1"]
[EndTime "11:17:21 PDT"]
[Termination "PSvidler won by resignation"]

1. e4 {[%clk 0:03:00.9]} 1... c5 {[%clk 0:02:59.2]} 2. Nc3 {[%clk 0:03:00.2]}
2... g6 {[%clk 0:02:57.5]} 3. h4 {[%clk 0:02:57.9]} 3... Nc6 {[%clk 0:02:49.1]}
4. h5 {[%clk 0:02:57.7]} 4... Bg7 {[%clk 0:02:49.7]} 5. d3 {[%clk 0:02:50.9]}
5... d6 {[%clk 0:02:46.9]} 6. Be2 {[%clk 0:02:40.7]} 6... Nd4 {[%clk 0:02:33.7]}
7. Be3 {[%clk 0:02:37]} 7... e5 {[%clk 0:02:31.2]} 8. Nd5 {[%clk 0:02:33.1]}
8... Be6 {[%clk 0:02:22.5]} 9. c3 {[%clk 0:02:28.2]} 9... Nxe2 {[%clk
0:02:21.7]} 10. Nxe2 {[%clk 0:02:27.3]} 10... Bxd5 {[%clk 0:02:21.3]} 11. exd5
{[%clk 0:02:27.4]} 11... Ne7 {[%clk 0:02:21]} 12. h6 {[%clk 0:02:07.3]} 12...
Bf6 {[%clk 0:02:15.2]} 13. c4 {[%clk 0:01:48.6]} 13... Nf5 {[%clk 0:02:14.4]}
14. Bd2 {[%clk 0:01:36.2]} 14... O-O {[%clk 0:02:13.9]} 15. Nc3 {[%clk
0:01:33.1]} 15... Bg5 {[%clk 0:02:12.1]} 16. Ne4 {[%clk 0:01:31.4]} 16... Bxd2+
{[%clk 0:02:10]} 17. Qxd2 {[%clk 0:01:31.6]} 17... Nd4 {[%clk 0:02:10.7]} 18.
O-O-O {[%clk 0:01:00.8]} 18... f5 {[%clk 0:02:05.8]} 19. Ng5 {[%clk 0:00:59.4]}
19... f4 {[%clk 0:02:06]} 20. Ne4 {[%clk 0:00:58]} 20... b5 {[%clk 0:02:05.9]}
21. g3 {[%clk 0:00:36.5]} 21... Rb8 {[%clk 0:02:00.9]} 22. Kb1 {[%clk
0:00:28.4]} 22... Qb6 {[%clk 0:01:57.1]} 23. Ng5 {[%clk 0:00:24.7]} 23... Qa6
{[%clk 0:01:47.1]} 24. Qc3 {[%clk 0:00:18.8]} 24... bxc4 {[%clk 0:01:45.4]} 25.
dxc4 {[%clk 0:00:18.4]} 25... Rb4 {[%clk 0:01:37.6]} 26. b3 {[%clk 0:00:17.7]}
26... Rfb8 {[%clk 0:01:37.2]} 27. Rxd4 {[%clk 0:00:09.8]} 27... cxd4 {[%clk
0:01:37.1]} 28. Qd3 {[%clk 0:00:09.7]} 28... Qxc4 {[%clk 0:01:37]} 0-1

[Event "*** Titled Tuesday Blitz"]
[Site "Chess.com"]
[Date "2020.10.27"]
[Round "7"]
[White "Flawless_Fighter"]
[Black "KarstenHansch"]
[Result "1-0"]
[WhiteElo "2612"]
[BlackElo "2480"]
[TimeControl "180+1"]
[EndTime "11:17:23 PDT"]
[Termination "Flawless_Fighter won by checkmate"]

1. d4 {[%clk 0:03:00.9]} 1... Nf6 {[%clk 0:02:57.5]} 2. c4 {[%clk 0:03:01.2]}
2... e6 {[%clk 0:02:57.7]} 3. g3 {[%clk 0:03:00.9]} 3... d5 {[%clk 0:02:57.9]}
4. Bg2 {[%clk 0:03:01.1]} 4... Be7 {[%clk 0:02:58.5]} 5. Nf3 {[%clk 0:03:01.3]}
5... O-O {[%clk 0:02:59.1]} 6. O-O {[%clk 0:03:01.5]} 6... dxc4 {[%clk
0:02:59.8]} 7. Ne5 {[%clk 0:03:02]} 7... Nc6 {[%clk 0:02:59.1]} 8. Nxc6 {[%clk
0:03:00.8]} 8... bxc6 {[%clk 0:02:59.3]} 9. Na3 {[%clk 0:03:01.4]} 9... Bxa3
{[%clk 0:02:58.3]} 10. bxa3 {[%clk 0:03:02.3]} 10... Ba6 {[%clk 0:02:56.7]} 11.
e3 {[%clk 0:02:58.7]} 11... Nd5 {[%clk 0:02:52]} 12. Re1 {[%clk 0:02:55.9]}
12... f5 {[%clk 0:02:51.8]} 13. e4 {[%clk 0:02:50.7]} 13... fxe4 {[%clk
0:02:46.4]} 14. Bxe4 {[%clk 0:02:40.8]} 14... Qf6 {[%clk 0:02:44.9]} 15. Qc2
{[%clk 0:02:25]} 15... Rad8 {[%clk 0:02:40.4]} 16. Bxh7+ {[%clk 0:02:21.1]}
16... Kh8 {[%clk 0:02:40.4]} 17. Be4 {[%clk 0:02:17.9]} 17... Qxd4 {[%clk
0:02:38.5]} 18. Bg5 {[%clk 0:02:05.9]} 18... Rd7 {[%clk 0:02:32.3]} 19. Qe2
{[%clk 0:01:57.5]} 19... Nf6 {[%clk 0:02:26.4]} 20. Bg6 {[%clk 0:01:34.3]} 20...
Rd5 {[%clk 0:02:11.9]} 21. Rad1 {[%clk 0:01:23.4]} 21... c3 {[%clk 0:01:53.5]}
22. Qxa6 {[%clk 0:01:07.9]} 22... Qxd1 {[%clk 0:01:51.7]} 23. Rxd1 {[%clk
0:01:07.8]} 23... Rxd1+ {[%clk 0:01:52.6]} 24. Kg2 {[%clk 0:01:08]} 24... Ng4
{[%clk 0:01:50.3]} 25. Bf4 {[%clk 0:00:51.5]} 25... Nxf2 {[%clk 0:01:10.2]} 26.
Qe2 {[%clk 0:00:45.1]} 26... Rfd8 {[%clk 0:01:01.2]} 27. Qh5+ {[%clk 0:00:40.6]}
27... Kg8 {[%clk 0:01:00.5]} 28. Qh7+ {[%clk 0:00:40.7]} 28... Kf8 {[%clk
0:01:00.9]} 29. Qh8+ {[%clk 0:00:40.7]} 29... Ke7 {[%clk 0:01:01.4]} 30. Qxg7#
{[%clk 0:00:41.4]} 1-0

[Event "*** Titled Tuesday Blitz"]
[Site "Chess.com"]
[Date "2020.10.27"]
[Round "7"]
[White "MashaFromRussia"]
[Black "Quiet_Desperation"]
[Result "1-0"]
[WhiteElo "2380"]
[BlackElo "2027"]
[TimeControl "180+1"]
[EndTime "11:17:26 PDT"]
[Termination "MashaFromRussia won by resignation"]

1. d4 {[%clk 0:03:00.9]} 1... Nf6 {[%clk 0:02:59.3]} 2. c4 {[%clk 0:03:01.4]}
2... e6 {[%clk 0:02:59.7]} 3. g3 {[%clk 0:03:01]} 3... Bb4+ {[%clk 0:02:59.7]}
4. Bd2 {[%clk 0:03:00.5]} 4... Qe7 {[%clk 0:02:58.8]} 5. Nf3 {[%clk 0:03:00.5]}
5... Nc6 {[%clk 0:02:58]} 6. Bg2 {[%clk 0:03:00.9]} 6... Bxd2+ {[%clk
0:02:58.2]} 7. Nbxd2 {[%clk 0:02:58.2]} 7... d6 {[%clk 0:02:58.1]} 8. O-O {[%clk
0:02:58.2]} 8... O-O {[%clk 0:02:58.3]} 9. e4 {[%clk 0:02:57.6]} 9... e5 {[%clk
0:02:58.7]} 10. d5 {[%clk 0:02:58]} 10... Nb8 {[%clk 0:02:59]} 11. Ne1 {[%clk
0:02:58.3]} 11... c6 {[%clk 0:02:58]} 12. Nd3 {[%clk 0:02:58.4]} 12... cxd5
{[%clk 0:02:57.4]} 13. cxd5 {[%clk 0:02:59.3]} 13... Bd7 {[%clk 0:02:57.7]} 14.
Qb3 {[%clk 0:02:58.4]} 14... Be8 {[%clk 0:02:38.5]} 15. Rfc1 {[%clk 0:02:55.2]}
15... Na6 {[%clk 0:02:36.8]} 16. Rc3 {[%clk 0:02:47.1]} 16... Rb8 {[%clk
0:02:35.9]} 17. Rac1 {[%clk 0:02:45.7]} 17... Bd7 {[%clk 0:02:35.6]} 18. Nc4
{[%clk 0:02:42.2]} 18... Rfc8 {[%clk 0:02:28.7]} 19. Na5 {[%clk 0:02:42.2]}
19... Rxc3 {[%clk 0:02:28.3]} 20. Rxc3 {[%clk 0:02:43.1]} 20... Be8 {[%clk
0:02:16.5]} 21. Qa3 {[%clk 0:02:29.8]} 21... Nd7 {[%clk 0:02:05.5]} 22. b4
{[%clk 0:02:25.5]} 22... g6 {[%clk 0:02:00.1]} 23. Nxb7 {[%clk 0:02:22]} 23...
Rxb7 {[%clk 0:01:40.9]} 24. Qxa6 {[%clk 0:02:21.7]} 24... Nb8 {[%clk 0:01:32.6]}
25. Qa5 {[%clk 0:02:16.6]} 25... Bb5 {[%clk 0:01:29.7]} 26. a4 {[%clk
0:02:11.2]} 26... Bxd3 {[%clk 0:01:28.8]} 27. Rxd3 {[%clk 0:02:12.1]} 27... Qg5
{[%clk 0:01:28.6]} 28. Rc3 {[%clk 0:02:09]} 28... Qd2 {[%clk 0:01:25]} 29. Rc8+
{[%clk 0:02:08.9]} 29... Kg7 {[%clk 0:01:25.2]} 30. Qd8 {[%clk 0:02:03.5]} 30...
Rxb4 {[%clk 0:01:18.1]} 31. Qf8+ {[%clk 0:02:02.5]} 31... Kf6 {[%clk 0:01:16]}
32. Qxd6+ {[%clk 0:02:03]} 32... Kg7 {[%clk 0:01:16]} 33. Qxe5+ {[%clk
0:02:03.3]} 33... Kh6 {[%clk 0:01:14.3]} 34. Rxb8 {[%clk 0:02:00.5]} 34... f6
{[%clk 0:01:07]} 35. Qd6 {[%clk 0:01:47.9]} 35... Qe1+ {[%clk 0:01:03.9]} 36.
Bf1 {[%clk 0:01:46.7]} 36... Rxe4 {[%clk 0:01:04.7]} 37. Qf8+ {[%clk 0:01:34.6]}
37... Kh5 {[%clk 0:00:58.2]} 38. d6 {[%clk 0:01:35]} 38... Re2 {[%clk
0:00:57.3]} 39. Rb5+ {[%clk 0:01:31.5]} 39... f5 {[%clk 0:00:57.5]} 40. Rxf5+
{[%clk 0:01:19.3]} 40... gxf5 {[%clk 0:00:56.2]} 41. Qxf5+ {[%clk 0:01:20.2]}
41... Kh6 {[%clk 0:00:53.9]} 42. Qf6+ {[%clk 0:01:20.6]} 1-0

[Event "*** Titled Tuesday Blitz"]
[Site "Chess.com"]
[Date "2020.10.27"]
[Round "7"]
[White "BilodeauA"]
[Black "Harsha_Bharathakoti"]
[Result "1-0"]
[WhiteElo "2917"]
[BlackElo "2824"]
[TimeControl "180+1"]
[EndTime "11:17:28 PDT"]
[Termination "BilodeauA won by resignation"]

1. e4 {[%clk 0:03:00.9]} 1... c6 {[%clk 0:02:55.8]} 2. Nf3 {[%clk 0:03:00.3]}
2... d5 {[%clk 0:02:56.7]} 3. d3 {[%clk 0:03:00.9]} 3... Qc7 {[%clk 0:02:51.9]}
4. Nc3 {[%clk 0:03:00.7]} 4... dxe4 {[%clk 0:02:38.2]} 5. dxe4 {[%clk
0:03:00.4]} 5... e5 {[%clk 0:02:38]} 6. a4 {[%clk 0:02:58.9]} 6... Bg4 {[%clk
0:02:26.8]} 7. h3 {[%clk 0:02:55.4]} 7... Bh5 {[%clk 0:02:17.7]} 8. Bc4 {[%clk
0:02:55.6]} 8... Nf6 {[%clk 0:02:17.4]} 9. Bg5 {[%clk 0:02:49.2]} 9... Nbd7
{[%clk 0:02:15.7]} 10. Qe2 {[%clk 0:02:48.1]} 10... Bb4 {[%clk 0:02:12]} 11. O-O
{[%clk 0:02:44.9]} 11... h6 {[%clk 0:02:03.5]} 12. Bh4 {[%clk 0:02:43.1]} 12...
O-O {[%clk 0:01:54.6]} 13. Rad1 {[%clk 0:02:42.2]} 13... Rfe8 {[%clk 0:01:34.5]}
14. Rfe1 {[%clk 0:02:29.3]} 14... Bg6 {[%clk 0:01:27.7]} 15. Bd3 {[%clk
0:02:16.9]} 15... Nh5 {[%clk 0:01:25.5]} 16. Qe3 {[%clk 0:02:12.3]} 16... Nf4
{[%clk 0:01:09.2]} 17. Bf1 {[%clk 0:02:11.9]} 17... Nf8 {[%clk 0:01:01.2]} 18.
Bg3 {[%clk 0:01:49]} 18... N8e6 {[%clk 0:01:00.4]} 19. Nh4 {[%clk 0:01:49.5]}
19... Bc5 {[%clk 0:00:56.4]} 20. Qc1 {[%clk 0:01:46.4]} 20... Bh5 {[%clk
0:00:46.5]} 21. Rd2 {[%clk 0:01:39.6]} 21... Rad8 {[%clk 0:00:45.1]} 22. Nf5
{[%clk 0:01:39.3]} 22... Rxd2 {[%clk 0:00:45.3]} 23. Qxd2 {[%clk 0:01:40.2]}
23... Rd8 {[%clk 0:00:46.1]} 24. Qc1 {[%clk 0:01:39.9]} 24... Qb6 {[%clk
0:00:32.2]} 25. Ne3 {[%clk 0:01:36.7]} 25... Nd4 {[%clk 0:00:25.7]} 26. Nc4
{[%clk 0:01:34.9]} 26... Qc7 {[%clk 0:00:26.2]} 27. Nxe5 {[%clk 0:01:33.2]}
27... Bd6 {[%clk 0:00:10.5]} 28. Qxf4 {[%clk 0:01:27.5]} 28... Bxe5 {[%clk
0:00:11]} 29. Qxe5 {[%clk 0:01:25.1]} 1-0

[Event "*** Titled Tuesday Blitz"]
[Site "Chess.com"]
[Date "2020.10.27"]
[Round "7"]
[White "Jungle_Jaguar"]
[Black "Supernotar"]
[Result "0-1"]
[WhiteElo "2634"]
[BlackElo "2853"]
[TimeControl "180+1"]
[EndTime "11:17:28 PDT"]
[Termination "Supernotar won by checkmate"]

1. e4 {[%clk 0:03:00.9]} 1... c6 {[%clk 0:03:00.1]} 2. d4 {[%clk 0:03:00.9]}
2... d5 {[%clk 0:03:00.4]} 3. e5 {[%clk 0:03:01.3]} 3... Bf5 {[%clk 0:03:00]} 4.
h4 {[%clk 0:03:01.1]} 4... h5 {[%clk 0:02:59.8]} 5. c4 {[%clk 0:03:01.3]} 5...
e6 {[%clk 0:02:59.4]} 6. Nc3 {[%clk 0:03:00.3]} 6... Nd7 {[%clk 0:02:58.2]} 7.
cxd5 {[%clk 0:02:59.9]} 7... cxd5 {[%clk 0:02:58.1]} 8. Bd3 {[%clk 0:03:00.4]}
8... Bxd3 {[%clk 0:02:55.1]} 9. Qxd3 {[%clk 0:03:01.3]} 9... Ne7 {[%clk
0:02:49.8]} 10. Nf3 {[%clk 0:02:46.1]} 10... Nf5 {[%clk 0:02:47.2]} 11. Bg5
{[%clk 0:02:39.3]} 11... Be7 {[%clk 0:02:44.5]} 12. Bxe7 {[%clk 0:02:37.8]}
12... Nxe7 {[%clk 0:02:45.2]} 13. O-O {[%clk 0:02:35.5]} 13... O-O {[%clk
0:02:39.4]} 14. Rfc1 {[%clk 0:02:27]} 14... a6 {[%clk 0:02:37.2]} 15. Na4 {[%clk
0:02:26.3]} 15... Nf5 {[%clk 0:02:32.3]} 16. g3 {[%clk 0:02:26]} 16... Rc8
{[%clk 0:02:30.1]} 17. a3 {[%clk 0:02:21]} 17... Rc4 {[%clk 0:02:27.3]} 18. b3
{[%clk 0:02:13.5]} 18... Rxd4 {[%clk 0:02:22.8]} 19. Nxd4 {[%clk 0:02:12.5]}
19... Nxe5 {[%clk 0:02:21.7]} 20. Qd1 {[%clk 0:01:30.7]} 20... Nxd4 {[%clk
0:02:20.5]} 21. Nc5 {[%clk 0:01:24.8]} 21... Nef3+ {[%clk 0:02:14.4]} 22. Kg2
{[%clk 0:01:24.8]} 22... e5 {[%clk 0:02:13.5]} 23. b4 {[%clk 0:01:15.1]} 23...
e4 {[%clk 0:02:11.9]} 24. Nxb7 {[%clk 0:01:14.9]} 24... Qf6 {[%clk 0:02:05.7]}
25. Nc5 {[%clk 0:01:15.1]} 25... Qg6 {[%clk 0:02:00.1]} 26. Kh1 {[%clk
0:01:12.4]} 26... Qg4 {[%clk 0:01:57.8]} 27. Qf1 {[%clk 0:01:13]} 27... f5
{[%clk 0:01:45]} 28. Nd7 {[%clk 0:00:24.3]} 28... f4 {[%clk 0:01:36.6]} 29. Nxf8
{[%clk 0:00:19.7]} 29... fxg3 {[%clk 0:01:32.3]} 30. fxg3 {[%clk 0:00:19]} 30...
Qxg3 {[%clk 0:01:30]} 31. Ra2 {[%clk 0:00:19.6]} 31... Qxh4+ {[%clk 0:01:26.5]}
32. Kg2 {[%clk 0:00:20.2]} 32... Qh2# {[%clk 0:01:24.4]} 0-1

[Event "*** Titled Tuesday Blitz"]
[Site "Chess.com"]
[Date "2020.10.27"]
[Round "7"]
[White "AIROPITO7"]
[Black "shnitez"]
[Result "1-0"]
[WhiteElo "2595"]
[BlackElo "2434"]
[TimeControl "180+1"]
[EndTime "11:17:29 PDT"]
[Termination "AIROPITO7 won by resignation"]

1. d4 {[%clk 0:03:00.9]} 1... Nf6 {[%clk 0:02:59.8]} 2. Nc3 {[%clk 0:02:59.9]}
2... d5 {[%clk 0:02:59.4]} 3. Bg5 {[%clk 0:02:59.6]} 3... Nbd7 {[%clk
0:02:56.7]} 4. e3 {[%clk 0:02:59]} 4... c6 {[%clk 0:02:54.4]} 5. f4 {[%clk
0:02:57]} 5... g6 {[%clk 0:02:44.1]} 6. Nf3 {[%clk 0:02:50.6]} 6... Bg7 {[%clk
0:02:44.1]} 7. Bd3 {[%clk 0:02:49.8]} 7... b5 {[%clk 0:02:33.7]} 8. O-O {[%clk
0:02:49.2]} 8... O-O {[%clk 0:02:31.9]} 9. Ne5 {[%clk 0:02:30.7]} 9... Qc7
{[%clk 0:02:31.5]} 10. Qe1 {[%clk 0:02:28.4]} 10... a5 {[%clk 0:02:22]} 11. Qh4
{[%clk 0:02:27.9]} 11... b4 {[%clk 0:02:19.5]} 12. Na4 {[%clk 0:02:25.7]} 12...
Re8 {[%clk 0:02:04.8]} 13. Rf3 {[%clk 0:02:20.7]} 13... Nf8 {[%clk 0:02:00.8]}
14. Bh6 {[%clk 0:02:17.1]} 14... Ne4 {[%clk 0:01:49.1]} 15. Bxe4 {[%clk
0:02:13.4]} 15... dxe4 {[%clk 0:01:50]} 16. Rf2 {[%clk 0:02:14.1]} 16... Bxh6
{[%clk 0:01:38.4]} 17. Qxh6 {[%clk 0:02:12.6]} 17... f6 {[%clk 0:01:38.8]} 18.
Nc4 {[%clk 0:02:07.6]} 18... Be6 {[%clk 0:01:32.6]} 19. Nd2 {[%clk 0:02:05.9]}
19... Bd5 {[%clk 0:01:20.6]} 20. Nc5 {[%clk 0:02:06]} 20... f5 {[%clk 0:01:14]}
21. g4 {[%clk 0:02:06.1]} 21... e6 {[%clk 0:01:14.4]} 22. c4 {[%clk 0:02:00.3]}
22... bxc3 {[%clk 0:01:13.5]} 23. bxc3 {[%clk 0:02:00.8]} 23... e5 {[%clk
0:00:38.3]} 24. fxe5 {[%clk 0:01:53.4]} 24... Ne6 {[%clk 0:00:22.9]} 25. gxf5
{[%clk 0:01:48.6]} 25... Nxc5 {[%clk 0:00:22.7]} 26. f6 {[%clk 0:01:45.8]} 26...
Nd3 {[%clk 0:00:19]} 27. Rg2 {[%clk 0:01:35.7]} 27... Qf7 {[%clk 0:00:18.9]} 28.
c4 {[%clk 0:01:34.3]} 28... Be6 {[%clk 0:00:15.7]} 29. Nxe4 {[%clk 0:01:34.7]}
29... Rad8 {[%clk 0:00:13]} 30. Ng5 {[%clk 0:01:33.3]} 30... Qd7 {[%clk
0:00:09.4]} 31. f7+ {[%clk 0:01:32.9]} 31... Bxf7 {[%clk 0:00:09.3]} 32. Qxh7+
{[%clk 0:01:33.1]} 32... Kf8 {[%clk 0:00:09.2]} 33. Rf1 {[%clk 0:01:33.9]} 1-0

[Event "*** Titled Tuesday Blitz"]
[Site "Chess.com"]
[Date "2020.10.27"]
[Round "7"]
[White "BrandonJacobson"]
[Black "OK97"]
[Result "0-1"]
[WhiteElo "2934"]
[BlackElo "2806"]
[TimeControl "180+1"]
[EndTime "11:17:32 PDT"]
[Termination "OK97 won by resignation"]

1. d4 {[%clk 0:03:00.9]} 1... Nf6 {[%clk 0:03:00]} 2. c4 {[%clk 0:03:01.1]} 2...
c5 {[%clk 0:03:00]} 3. Nf3 {[%clk 0:02:59.2]} 3... cxd4 {[%clk 0:03:00]} 4. Nxd4
{[%clk 0:02:59.8]} 4... e5 {[%clk 0:03:00.5]} 5. Nb5 {[%clk 0:03:00]} 5... d5
{[%clk 0:03:01.1]} 6. cxd5 {[%clk 0:03:00.9]} 6... Bc5 {[%clk 0:03:01.3]} 7. e3
{[%clk 0:02:58.6]} 7... O-O {[%clk 0:02:59.7]} 8. N5c3 {[%clk 0:02:55.4]} 8...
Bf5 {[%clk 0:02:56.9]} 9. Be2 {[%clk 0:02:52.1]} 9... Nbd7 {[%clk 0:02:52.4]}
10. O-O {[%clk 0:02:51.6]} 10... Nb6 {[%clk 0:02:52.6]} 11. a3 {[%clk
0:02:31.1]} 11... Nbxd5 {[%clk 0:02:49.7]} 12. b4 {[%clk 0:02:30.9]} 12... Bb6
{[%clk 0:02:40]} 13. Bb2 {[%clk 0:02:30.7]} 13... Re8 {[%clk 0:02:28.5]} 14.
Nxd5 {[%clk 0:02:06.7]} 14... Nxd5 {[%clk 0:02:26.2]} 15. Nd2 {[%clk 0:02:05]}
15... Bg6 {[%clk 0:01:52.7]} 16. Qb3 {[%clk 0:01:58]} 16... Nxe3 {[%clk
0:01:50.6]} 17. fxe3 {[%clk 0:01:12.4]} 17... Qxd2 {[%clk 0:01:50]} 18. Rae1
{[%clk 0:01:04.5]} 18... Qxe3+ {[%clk 0:01:37.9]} 19. Qxe3 {[%clk 0:01:04.7]}
19... Bxe3+ {[%clk 0:01:38.8]} 20. Kh1 {[%clk 0:01:05.3]} 20... Bd4 {[%clk
0:01:37.7]} 21. Bxd4 {[%clk 0:01:01.6]} 21... exd4 {[%clk 0:01:38.6]} 22. Bf3
{[%clk 0:01:02]} 22... d3 {[%clk 0:01:25.2]} 23. Bxb7 {[%clk 0:01:01.5]} 23...
Rxe1 {[%clk 0:01:19.2]} 24. Rxe1 {[%clk 0:01:01.2]} 24... d2 {[%clk 0:01:17]}
25. Rf1 {[%clk 0:00:47.6]} 25... Re8 {[%clk 0:00:52.5]} 26. Bf3 {[%clk
0:00:38.1]} 26... Re1 {[%clk 0:00:52]} 27. Kg1 {[%clk 0:00:38.5]} 27... Bd3
{[%clk 0:00:51.7]} 0-1